fUSD/lending_fUSD_20250326
["ID","MTS","AMOUNT","RATE_DAILY","PERIOD"]
[356719989,1743019841479,-500.0,0.0004397,120]
[356719990,1743019841488,-500.0,0.0004397,120]
[356719991,1743019841500,-500.0,0.0004397,120]
[356719992,1743019841510,-500.0,0.0004397,120]
[356719993,1743019841520,-500.0,0.0004397,120]
[356719994,1743019841529,-500.0,0.0004397,120]
[356719995,1743019841539,-500.0,0.0004397,120]
[356719996,1743019841548,-451.86075491,0.0004397,120]
[356720021,1743019846240,-48.13924509,0.0004397,120]
[356720022,1743019846249,-500.0,0.0004397,120]
[356720023,1743019846259,-500.0,0.0004397,120]
[356720024,1743019846270,-500.0,0.0004397,120]
[356720025,1743019846280,-500.0,0.0004397,120]
[356720026,1743019846290,-500.0,0.0004397,120]
[356720027,1743019846300,-500.0,0.0004397,120]
[356720028,1743019846311,-500.0,0.0004397,120]
[356720029,1743019846322,-500.0,0.0004397,120]
[356720030,1743019846332,-500.0,0.0004397,120]
[356720031,1743019846343,-500.0,0.0004397,120]
[356720032,1743019846352,-500.0,0.0004397,120]
[356720033,1743019846362,-500.0,0.0004397,120]
[356720034,1743019846372,-909.0,0.0004397,120]
[356720035,1743019846382,-500.0,0.0004397,120]
[356720036,1743019846392,-500.0,0.0004397,120]
[356720037,1743019846402,-500.0,0.0004397,120]
[356720038,1743019846412,-500.0,0.0004397,120]
[356720039,1743019846422,-500.0,0.0004397,120]
[356720040,1743019846432,-589.0,0.0004397,120]
[356720041,1743019846443,-500.0,0.0004397,120]
[356720042,1743019846457,-500.0,0.0004397,120]
[356720043,1743019846467,-500.0,0.0004397,120]
[356720044,1743019846477,-500.0,0.0004397,120]
[356720045,1743019846487,-500.0,0.0004397,120]
[356720046,1743019846500,-508.0,0.0004397,120]
[356720047,1743019846510,-500.0,0.0004397,120]
[356720048,1743019846522,-500.0,0.0004397,120]
[356720049,1743019846533,-500.0,0.0004397,120]
[356720050,1743019846544,-500.0,0.0004397,120]
[356720051,1743019846554,-500.0,0.0004397,120]
[356720052,1743019846564,-500.0,0.0004397,120]
[356720053,1743019846575,-500.0,0.0004397,120]
[356720054,1743019846585,-500.0,0.0004397,120]
[356720055,1743019846594,-500.0,0.0004397,120]
[356720056,1743019846604,-500.0,0.0004397,120]
[356720057,1743019846613,-500.0,0.0004397,120]
[356720058,1743019846623,-500.0,0.0004397,120]
[356720060,1743019846632,-500.0,0.0004397,120]
[356720061,1743019846641,-500.0,0.0004397,120]
[356720062,1743019846651,-500.0,0.0004397,120]
[356720063,1743019846660,-500.0,0.0004397,120]
[356720064,1743019846669,-500.0,0.0004397,120]
[356720065,1743019846679,-500.0,0.0004397,120]
[356720066,1743019846688,-500.0,0.0004397,120]
[356720067,1743019846697,-500.0,0.0004397,120]
[356720068,1743019846708,-500.0,0.0004397,120]
[356720069,1743019846718,-500.0,0.0004397,120]
[356720070,1743019846727,-500.0,0.0004397,120]
[356720071,1743019846737,-500.0,0.0004397,120]
[356720072,1743019846747,-500.0,0.0004397,120]
[356720073,1743019846760,-500.0,0.0004397,120]
[356720074,1743019846769,-500.0,0.0004397,120]
[356720075,1743019846779,-500.0,0.0004397,120]
[356720076,1743019846789,-500.0,0.0004397,120]
[356720077,1743019846798,-500.0,0.0004397,120]
[356720078,1743019846807,-500.0,0.0004397,120]
[356720079,1743019846817,-500.0,0.0004397,120]
[356720080,1743019846827,-173.68831729,0.0004397,120]
[356720081,1743019846840,-326.31168271,0.0004397,120]
[356720082,1743019846850,-500.0,0.0004397,120]
[356720083,1743019846859,-500.0,0.0004397,120]
[356720084,1743019846869,-500.0,0.0004397,120]
[356720085,1743019846879,-500.0,0.0004397,120]
[356720086,1743019846888,-78.48831729,0.0004397,120]
[356720087,1743019846903,-421.51168271,0.0004397,120]
[356720088,1743019846912,-557.0,0.0004397,120]
[356720089,1743019846922,-284370.121434,0.0004397,3]
[356720090,1743019846931,-466.0,0.00043973,120]
[356720091,1743019846941,-2169.0,0.0004398,7]
[356720092,1743019846951,-468821.204568,0.0004398,30]
[356720093,1743019846998,-525.78903043,0.0004398,30]
[356720094,1743019847009,-2654.3241981,0.0004398,30]
[356720095,1743019847021,-401.7519,0.0004398,30]
[356720096,1743019847032,-47571.75907061,0.0004398,30]
[356720097,1743019847047,-6432.0711299,0.0004398,30]
[356720118,1743021031532,-374.252,0.00014527,2]
[356720119,1743021031544,-620.335,0.00014527,2]
[356720120,1743021031756,-923.95,0.00014527,2]
[356720121,1743021031812,-2384.5992,0.00014527,2]
[356720140,1743021037522,-388.236945,0.00014527,2]
[356720141,1743021037533,-1009.18148825,0.000146,5]
[356720142,1743021037545,-630.6133071,0.000146,5]
[356720143,1743021037556,-260.20520465,0.000146,5]
[356720144,1743021037566,-3800.0,0.000147,5]
[356720145,1743021037575,-5700.0,0.000148,5]
[356720146,1743021037585,-7600.0,0.000149,5]
[356720147,1743021037594,-150.0,0.00014999,2]
[356720148,1743021037603,-72538.24116813,0.00015,2]
[356720149,1743021037615,-17383.05371596,0.00015,2]
[356720150,1743021037627,-384.1090751,0.00015,2]
[356720151,1743021037638,-627.96406015,0.00015,2]
[356720152,1743021037649,-320.14840894,0.00015,2]
[356720153,1743021037661,-411.93182001,0.00015,2]
[356720154,1743021037791,-895.41240552,0.00015,2]
[356720161,1743021040013,-5979.62886414,0.00015,2]
[356720162,1743021040339,-19649.03444717,0.00015,2]
[356720170,1743021042614,-1220.36365,0.00015,2]
[356720173,1743021045384,-298.62204369,0.00015,2]
[356720180,1743021045444,-652.94562,0.00015,2]
[356720188,1743021089894,1000.0,0.00032336,30]
[356720189,1743021122998,163144.3,0.00032336,30]
[356720205,1743022231646,-900.0,0.000146,5]
[356720206,1743022231656,-638.463,0.000147,2]
[356720207,1743022231665,-1900.0,0.000147,5]
[356720208,1743022231674,-2800.0,0.000148,5]
[356720209,1743022231684,-300.0,0.00014899,2]
[356720210,1743022231693,-4484.8365,0.000149,2]
[356720211,1743022231702,-341.94384966,0.000149,2]
[356720212,1743022231712,-2196.63596599,0.000149,5]
[356720213,1743022231723,-604.34961107,0.000149,5]
[356720214,1743022231734,-650.08350238,0.000149,5]
[356720215,1743022231745,-348.93092056,0.000149,5]
[356720216,1743022231754,-290.00835356,0.000149,2]
[356720217,1743022231766,-370.04022624,0.000149,2]
[356720218,1743022231868,-610.0,0.000149,2]
[356720219,1743022231926,-112.7194202,0.000149,2]
[356720220,1743022231936,-150.0,0.00014999,2]
[356720221,1743022231945,-12868.4138808,0.00015,2]
[356720222,1743022231979,-1391.08289891,0.00015,2]
[356720223,1743022231990,-904.31236938,0.00015,2]
[356720224,1743022232001,-427.97595981,0.00015,2]
[356720250,1743022237558,-2274.40999996,0.00015,2]
[356720251,1743022237667,-257.26787767,0.00015,2]
[356720252,1743022237723,-1200.0,0.00015,2]
[356720253,1743022237735,-18660.49886791,0.00015,2]
[356720254,1743022237746,-2115.47849276,0.00015,2]
[356720255,1743022237757,-1217.63557993,0.00015,2]
[356720256,1743022237768,-21564.97040105,0.00015,2]
[356720257,1743022237783,-604.71309673,0.00015,2]
[356720293,1743022239715,-919.39818052,0.00015,2]
[356720294,1743022239824,-13892.55453119,0.00015,2]
[356720295,1743022239987,-4964.31847984,0.00015,2]
[356720296,1743022239999,-127848.99775725,0.00015,2]
[356720297,1743022240097,-17180.38214028,0.00015,2]
[356720313,1743022242718,-672.54591315,0.00015,2]
[356720321,1743022245591,-707.3898016,0.00015,2]
[356720322,1743022245842,-438.7763322,0.00015,2]
[356720323,1743022245853,-941.635,0.00015,2]
[356720324,1743022245896,-266947.3313532,0.00015,2]
[356720327,1743022914054,-540.097212,0.00014787,2]
[356720328,1743022914076,-115.102788,0.00014862,2]
[356720341,1743023431823,-400.0,0.000147,5]
[356720342,1743023431832,-900.0,0.000148,5]
[356720343,1743023431842,-150.0,0.00014899,2]
[356720344,1743023431851,-2543.40650774,0.000149,2]
[356720345,1743023431933,-10335.35274793,0.000149,2]
[356720346,1743023431990,-12319.90945702,0.000149,2]
[356720347,1743023432102,-1539.6573271,0.000149,2]
[356720348,1743023432159,-24042.61756843,0.000149,2]
[356720349,1743023432171,-261.56299178,0.000149,2]
[356720350,1743023432180,-379.2743777,0.000149,2]
[356720360,1743023437760,-14.43683368,0.000149,2]
[356720361,1743023437770,-1400.0,0.000149,5]
[356720362,1743023437780,-232.41961109,0.000149,2]
[356720363,1743023437789,-217.5062162,0.000149,2]
[356720364,1743023437802,-500.0,0.00014973,2]
[356720365,1743023437812,-155.13797389,0.00014973,2]
[356720366,1743023437821,-383011.31281313,0.00015,2]
[356720367,1743023437869,-932.58255358,0.00015,2]
[356720368,1743023437925,-52809.61873836,0.00015,2]
[356720369,1743023437981,-6224.572055,0.00015,2]
[356720370,1743023437993,-9939.09304,0.00015,2]
[356720372,1743023440187,-304.28433699,0.00015,2]
[356720377,1743023442908,-20118.00000002,0.00015,2]
[356720382,1743023445909,-2.36708381,0.00015,2]
[356720385,1743024355160,-213.8752,0.0001173,2]
[356720400,1743024632352,-451.76828248,0.0001173,2]
[356720401,1743024632361,-48.23171752,0.000146,5]
[356720410,1743024638062,-251.76828248,0.000146,5]
[356720411,1743024638075,-632.622,0.000147,2]
[356720412,1743024638084,-700.0,0.000147,5]
[356720413,1743024638093,-190.08,0.00014797,2]
[356720414,1743024638102,-1000.0,0.000148,5]
[356720415,1743024638111,-377.5878,0.000149,2]
[356720416,1743024638120,-337.46675256,0.000149,2]
[356720417,1743024638130,-7441.0262,0.000149,2]
[356720418,1743024638139,-161.0038,0.000149,2]
[356720419,1743024638148,-460.3358,0.000149,2]
[356720420,1743024638158,-1400.0,0.000149,5]
[356720421,1743024638167,-209.17764999,0.000149,2]
[356720422,1743024638177,-1235.827,0.000149,2]
[356720423,1743024638187,-310096.84075268,0.00015,2]
[356720426,1743024640080,-4329.35293037,0.00015,2]
[356720427,1743024640140,-587578.09989733,0.00015,2]
[356720428,1743024640153,-358.95309537,0.00015,2]
[356720429,1743024640535,-0.01596958,0.00015,2]
[356720455,1743024646321,-427.75350801,0.00015,2]
[356720456,1743024646332,-392.29490377,0.00015,2]
[356720457,1743024646368,-48177.65211995,0.00015,2]
[356720463,1743025301611,500.0,0.00032341,120]
[356720492,1743025832185,-571.02,0.00014522,2]
[356720493,1743025832195,-284.58425003,0.000147,2]
[356720494,1743025832207,-221.51274997,0.000147,2]
[356720495,1743025832217,-671.03854884,0.000147,2]
[356720496,1743025832243,-65859.65616076,0.000147,2]
[356720497,1743025832255,-6507.4893391,0.000147,2]
[356720498,1743025832264,-4011.17052701,0.000147,2]
[356720499,1743025832360,-2585.8371254,0.000147,2]
[356720500,1743025832371,-1375.43354723,0.000147,2]
[356720501,1743025832383,-82982.30087,0.000147,2]
[356720502,1743025832394,-3059.95859964,0.000147,2]
[356720503,1743025832406,-4050.0,0.000147,2]
[356720504,1743025832417,-2719.999997,0.000147,2]
[356720505,1743025832428,-58189.65602272,0.000147,2]
[356720506,1743025832439,-2374.33950491,0.000149,2]
[356720507,1743025832449,-2374.33950492,0.000149,2]
[356720508,1743025832459,-289.25721648,0.000149,2]
[356720509,1743025832468,-188.259885,0.000149,2]
[356720510,1743025832478,-171.36272092,0.000149,2]
[356720511,1743025832489,-1125.0,0.00015,2]
[356720512,1743025832498,-10123.3083465,0.00015,2]
[356720513,1743025832510,-762.53684497,0.00015,2]
[356720514,1743025832522,-696.62044734,0.00015,2]
[356720581,1743025838069,-1015.0,0.00015,2]
[356720582,1743025838079,-18768.16853405,0.00015,2]
[356720583,1743025838090,-169503.83409735,0.00015,2]
[356720584,1743025838101,-582.89983467,0.00015,2]
[356720585,1743025838125,-775.44461026,0.00015,2]
[356720586,1743025838136,-929.41239997,0.00015,2]
[356720587,1743025838147,-615.81738681,0.00015,2]
[356720588,1743025838158,-351.60376349,0.00015,2]
[356720589,1743025838169,-315.82942191,0.00015,2]
[356720590,1743025838180,-3067.99999,0.00015,2]
[356720591,1743025838291,-548.05000155,0.00015,2]
[356720599,1743025840419,-287.29639999,0.00015,2]
[356720600,1743025840431,-687.34045382,0.00015,2]
[356720601,1743025840469,-2407.17336082,0.00015,2]
[356720602,1743025840480,-266.88,0.00015,2]
[356720603,1743025840641,-587578.09989733,0.00015,2]
[356720604,1743025840701,-522.91188455,0.00015,2]
[356720615,1743025843325,-913.0,0.00015,2]
[356720616,1743025843336,-22650.0929,0.00015,2]
[356720617,1743025843347,-6719.98454289,0.00015,2]
[356720618,1743025843382,-7529.9995,0.00015,2]
[356720654,1743025846797,-488.53388344,0.00015,2]
[356720655,1743025846808,-2877.12511633,0.00015,2]
[356720656,1743025846819,-352.63617568,0.00015,2]
[356720678,1743027032383,-542.46,0.00013952,2]
[356720679,1743027032392,-175.810964,0.00014626,2]
[356720680,1743027032402,-445.48,0.000147,2]
[356720681,1743027032412,-2148.2701,0.000149,2]
[356720682,1743027032421,-3727.77954288,0.00015,2]
[356720683,1743027032436,-443.42189543,0.00015,2]
[356720684,1743027032447,-2638.46326008,0.00015,2]
[356720685,1743027032459,-1399.93190357,0.00015,2]
[356720686,1743027032470,-3942.68864785,0.00015,2]
[356720687,1743027032482,-595.39054192,0.00015,2]
[356720688,1743027032493,-4873.03523845,0.00015,2]
[356720689,1743027032504,-350.49185435,0.00015,2]
[356720690,1743027032515,-540.0,0.00015,2]
[356720691,1743027032527,-385.47,0.00015,2]
[356720692,1743027032537,-1885.6802487,0.00015,2]
[356720693,1743027032566,-3180.34249234,0.00015,2]
[356720694,1743027032577,-1362.72500668,0.00015,2]
[356720695,1743027032591,-2453.44955276,0.00015,2]
[356720696,1743027032602,-445.49189213,0.00015,2]
[356720697,1743027032624,-7702.67026752,0.00015,2]
[356720698,1743027032635,-6337.57945977,0.00015,2]
[356720699,1743027032646,-298.695,0.00015,2]
[356720700,1743027032657,-5061.16061818,0.00015,2]
[356720701,1743027032667,-670.10007224,0.00015,2]
[356720702,1743027032820,-700.0,0.00015,2]
[356720703,1743027032831,-325.23380796,0.00015,2]
[356720704,1743027032844,-4232.56611195,0.00015,2]
[356720705,1743027032855,-9280.08472226,0.00015,2]
[356720708,1743027032866,-255.82226813,0.00015,2]
[356720710,1743027032879,-601.40263852,0.00015,2]
[356720712,1743027032890,-322.9200006,0.00015,2]
[356721177,1743027038285,-1140.74733743,0.00015,2]
[356721178,1743027038296,-2133.26738978,0.00015,2]
[356721179,1743027038310,-363.240668,0.00015,2]
[356721180,1743027038320,-819.69510201,0.00015,2]
[356721181,1743027038332,-20204.73710133,0.00015,2]
[356721182,1743027038398,-2854.40002,0.00015,2]
[356721183,1743027038409,-873.62,0.00015,2]
[356721184,1743027038420,-52855.59372493,0.00015,2]
[356721185,1743027038429,-151017.35367175,0.00015,2]
[356721186,1743027038440,-838.51428756,0.00015,2]
[356721187,1743027038451,-11323.77274692,0.00015,2]
[356721188,1743027038462,-3156.42650307,0.00015,2]
[356721189,1743027038477,-603.465158,0.00015,2]
[356721190,1743027038488,-848.6840014,0.00015,2]
[356721191,1743027038499,-9061.49703077,0.00015,2]
[356721200,1743027040511,-564987.10254005,0.00015,2]
[356721201,1743027040520,-22590.99735728,0.00015,2]
[356721202,1743027040575,-1011.06427204,0.00015,2]
[356721203,1743027040587,-1375.4138,0.00015,2]
[356721204,1743027040637,-4594.79109732,0.00015,2]
[356721205,1743027040772,-56269.70263737,0.00015,2]
[356721206,1743027040782,-1665.46166268,0.000154,7]
[356721207,1743027040791,-22438.27,0.00015902,2]
[356721208,1743027040801,-200.0,0.00015902,2]
[356721209,1743027040815,-514.61,0.00015902,2]
[356721210,1743027040824,-514.61,0.00015935,2]
[356721211,1743027040834,-514.61,0.00015969,2]
[356721212,1743027040843,-13345.73,0.00015985,2]
[356721213,1743027040853,-500.0,0.00015993,2]
[356721214,1743027040863,-514.61,0.00016002,2]
[356721215,1743027040873,-247.934757,0.00016015,2]
[356721216,1743027040882,-150.99,0.00016036,2]
[356721217,1743027040893,-394.60807741,0.00016036,2]
[356721218,1743027040905,-120.00192259,0.00016036,2]
[356721219,1743027040914,-514.61,0.00016069,2]
[356721220,1743027040923,-151.0,0.00016082,2]
[356721221,1743027040932,-151.0,0.00016082,2]
[356721222,1743027040942,-23900.0,0.00016082,2]
[356721223,1743027040951,-514.61,0.00016103,2]
[356721224,1743027040960,-161.15,0.00016115,2]
[356721225,1743027040969,-514.61,0.00016136,2]
[356721226,1743027040979,-1000.0,0.00016156,2]
[356721227,1743027040988,-13461.49538527,0.00016166,2]
[356721228,1743027040998,-1114.42,0.00016168,2]
[356721229,1743027041008,-514.61,0.0001617,2]
[356721230,1743027041018,-150.0,0.0001617,2]
[356721231,1743027041028,-250.0,0.00016186,2]
[356721232,1743027041038,-200.0,0.00016196,2]
[356721233,1743027041047,-514.61,0.00016203,2]
[356721234,1743027041057,-689.74,0.00016208,2]
[356721235,1743027041067,-542.46,0.00016216,2]
[356721236,1743027041076,-514.61,0.00016237,2]
[356721237,1743027041086,-514.61,0.0001627,2]
[356721238,1743027041095,-514.61,0.00016304,2]
[356721239,1743027041105,-514.61,0.00016337,2]
[356721240,1743027041115,-350.0,0.00016348,3]
[356721241,1743027041125,-150.0,0.00016348,2]
[356721242,1743027041134,-150.0,0.00016348,2]
[356721243,1743027041143,-999.99,0.00016348,2]
[356721244,1743027041152,-514.61,0.00016371,2]
[356721245,1743027041162,-243.78,0.00016397,2]
[356721246,1743027041171,-514.61,0.00016404,2]
[356721247,1743027041181,-819.0,0.00016413,2]
[356721248,1743027041190,-514.61,0.00016438,2]
[356721249,1743027041200,-171.3,0.0001644,2]
[356721250,1743027041210,-514.61,0.00016471,2]
[356721251,1743027041219,-514.61,0.00016505,2]
[356721252,1743027041229,-150.0,0.00016518,7]
[356721253,1743027041238,-514.61,0.00016538,2]
[356721254,1743027041247,-538.36,0.00017156,2]
[356721255,1743027041257,-382.0,0.00018055,2]
[356721256,1743027041267,-240.39599724,0.00018163,2]
[356721257,1743027041277,-1000.0,0.00018175,2]
[356721258,1743027041286,-542.46,0.0001848,2]
[356721259,1743027041296,-159.68,0.000186,2]
[356721260,1743027041305,-289.46528128,0.00019,2]
[356721261,1743027041315,-1024.77820322,0.00019,2]
[356721262,1743027041324,-156.411124,0.00019,2]
[356721263,1743027041333,-152.622864,0.00019,2]
[356721264,1743027041343,-157.178502,0.00019,2]
[356721265,1743027041352,-199.626427,0.00019,2]
[356721266,1743027041361,-151.890802,0.00019,2]
[356721267,1743027041371,-151.0,0.00019,2]
[356721268,1743027041381,-151.0,0.00019,2]
[356721269,1743027041390,-151.0,0.00019,2]
[356721270,1743027041400,-151.0,0.00019,2]
[356721271,1743027041409,-151.0,0.00019,2]
[356721272,1743027041419,-151.0,0.00019,2]
[356721273,1743027041429,-151.0,0.00019,2]
[356721274,1743027041438,-151.0,0.00019,2]
[356721275,1743027041447,-151.0,0.00019,2]
[356721276,1743027041457,-151.0,0.00019,2]
[356721277,1743027041467,-151.0,0.00019,2]
[356721278,1743027041476,-218.311288,0.00019,2]
[356721279,1743027041485,-215.315007,0.00019,2]
[356721280,1743027041495,-300.747108,0.00019,2]
[356721281,1743027041505,-153.602421,0.00019,2]
[356721282,1743027041514,-56685.83215779,0.00019,2]
[356721283,1743027041527,-963.19752,0.00019,2]
[356721286,1743027043420,-2815.13728353,0.00019,2]
[356721287,1743027043528,-68212.65433712,0.00019,2]
[356721288,1743027043539,-151.0,0.00019,2]
[356721289,1743027043548,-151.0,0.00019,2]
[356721290,1743027043558,-151.0,0.00019,2]
[356721291,1743027043568,-151.0,0.00019,2]
[356721292,1743027043578,-193.072375,0.00019,2]
[356721293,1743027043588,-151.0,0.00019,2]
[356721294,1743027043598,-151.0,0.00019,2]
[356721295,1743027043607,-200.541963,0.00019,2]
[356721296,1743027043617,-151.0,0.00019,2]
[356721297,1743027043627,-151.0,0.00019,2]
[356721298,1743027043636,-151.0,0.00019,2]
[356721299,1743027043646,-52401.80934266,0.000196,2]
[356721300,1743027043656,-66737.92042656,0.0002,2]
[356721301,1743027043666,-2000.0,0.0002,4]
[356721302,1743027043675,-157.56,0.0002,2]
[356721303,1743027043684,-161.15,0.00020144,2]
[356721304,1743027043694,-1000.0,0.00020195,2]
[356721305,1743027043704,-542.46,0.00020744,2]
[356721306,1743027043714,-159.253341,0.0002086,2]
[356721307,1743027043723,-151.0,0.0002086,2]
[356721308,1743027043732,-151.0,0.0002086,2]
[356721309,1743027043742,-42215.31234071,0.00021,2]
[356721310,1743027043754,-111207.3299829,0.00021,2]
[356721311,1743027043765,-72462.32164005,0.00021,2]
[356721312,1743027043776,-1943.25529658,0.00021,2]
[356721313,1743027043787,-2109.66687147,0.00021,2]
[356721314,1743027043799,-1254.32754042,0.00021,2]
[356721315,1743027043814,-10083.10809328,0.00021,2]
[356721316,1743027043824,-151.0,0.00021,2]
[356721317,1743027043833,-151.0,0.00021,2]
[356721318,1743027043843,-151.0,0.00021,2]
[356721319,1743027043854,-151.0,0.00021,2]
[356721320,1743027043863,-247.93475698,0.00021663,2]
[356721321,1743027043872,-168.18,0.00021909,2]
[356721322,1743027043884,-1000.0,0.00022214,2]
[356721323,1743027043893,-689.74,0.00022692,2]
[356721324,1743027043902,-95.56010367,0.000227,3]
[356721325,1743027043914,-121.86945352,0.000227,3]
[356721326,1743027043924,-150.0,0.00022971,2]
[356721327,1743027043934,-542.46,0.00023008,2]
[356721328,1743027043944,-1121.80574648,0.00023333,4]
[356721330,1743027043956,-878.19425352,0.00023333,4]
[356721332,1743027043966,-10991.47415731,0.0002361,7]
[356721334,1743027043978,-407.99666842,0.0002361,7]
[356721335,1743027043990,-875.29110732,0.0002361,7]
[356721336,1743027043999,-190.62,0.00023836,2]
[356721337,1743027044009,-161.15,0.00024172,2]
[356721338,1743027044019,-1000.0,0.00024233,2]
[356721339,1743027044028,-1000.0,0.00024658,2]
[356721340,1743027044038,-171.3,0.0002466,2]
[356721341,1743027044047,-358.77,0.00024712,30]
[356721342,1743027044057,-2671.72701339,0.000248,2]
[356721343,1743027044069,-1115.23587668,0.000248,2]
[356721347,1743027046974,-13880.54347025,0.000248,2]
[356721348,1743027046993,-1749.5421,0.000248,2]
[356721349,1743027047003,-73965.3200776,0.000248,2]
[356721402,1743028231589,-434.38,0.00013699,2]
[356721403,1743028231600,-150.0,0.00014899,2]
[356721404,1743028231610,-829.199,0.000149,2]
[356721405,1743028231619,-197.66130252,0.000149,2]
[356721406,1743028231629,-177.09751916,0.000149,2]
[356721407,1743028231639,-338.98289266,0.000149,2]
[356721408,1743028231650,-13322.6475078,0.000149,2]
[356721409,1743028231662,-1369.1000004,0.000149,2]
[356721410,1743028231755,-1582.22003,0.000149,2]
[356721411,1743028231772,-7737.77055826,0.000149,2]
[356721412,1743028231783,-169.4338965,0.000149,2]
[356721413,1743028231792,-504.16156244,0.00014973,2]
[356721414,1743028231801,-501.57357659,0.00014973,2]
[356721415,1743028231811,-160.45870915,0.00014973,2]
[356721416,1743028231820,-152.39803459,0.00014973,2]
[356721417,1743028231832,-150.0,0.00014986,2]
[356721418,1743028231841,-500.0,0.00014999,2]
[356721419,1743028231850,-500.0,0.00014999,2]
[356721420,1743028231859,-500.0,0.00014999,2]
[356721421,1743028231869,-500.0,0.00014999,2]
[356721422,1743028231879,-617.45706723,0.00014999,2]
[356721423,1743028231888,-261.94965966,0.00014999,2]
[356721424,1743028231902,-238.05034034,0.00014999,2]
[356721425,1743028231911,-500.0,0.00014999,2]
[356721426,1743028231921,-500.0,0.00014999,2]
[356721427,1743028231930,-500.0,0.00014999,2]
[356721428,1743028231939,-127.40783287,0.00014999,2]
[356721429,1743028231952,-372.59216713,0.00014999,2]
[356721430,1743028231961,-472.61219287,0.00014999,2]
[356721435,1743028237448,-500.0,0.00014899,2]
[356721436,1743028237458,-348.26753224,0.00014899,2]
[356721437,1743028237470,-151.73246776,0.00014899,2]
[356721438,1743028237480,-138.0725497,0.00014899,2]
[356721439,1743028237492,-361.9274503,0.00014899,2]
[356721440,1743028237502,-83.50212909,0.00014899,2]
[356721441,1743028237515,-416.49787091,0.00014899,2]
[356721442,1743028237525,-500.0,0.00014899,2]
[356721443,1743028237535,-500.0,0.00014899,2]
[356721444,1743028237544,-103.50212909,0.00014899,2]
[356721445,1743028237555,-396.49787091,0.00014899,2]
[356721446,1743028237565,-500.0,0.00014899,2]
[356721447,1743028237574,-500.0,0.00014899,2]
[356721448,1743028237586,-500.0,0.00014899,2]
[356721450,1743028237596,-586.39473314,0.00014899,2]
[356721452,1743028237606,-500.0,0.00014899,2]
[356721453,1743028237628,-493.70739595,0.00014899,2]
[356721454,1743028237642,-6.29260405,0.00014899,2]
[356721455,1743028237652,-500.0,0.00014899,2]
[356721456,1743028237662,-205.66452331,0.00014899,2]
[356721457,1743028237675,-294.33547669,0.00014899,2]
[356721458,1743028237685,-170.61658495,0.00014899,2]
[356721459,1743028237697,-329.38341505,0.00014899,2]
[356721460,1743028237708,-378.116585,0.00014899,2]
[356721463,1743028237720,-121.883415,0.00014899,2]
[356721465,1743028237731,-17648.26945592,0.00015,2]
[356721467,1743028237743,-84554.06403477,0.00015,2]
[356721469,1743028237755,-348.40686012,0.00015,2]
[356721471,1743028237767,-661.21728265,0.00015,2]
[356721474,1743028237779,-735.0921918,0.00015,2]
[356721476,1743028237792,-16098.20203296,0.00015,2]
[356721510,1743028239627,-4461.00142383,0.00015,2]
[356721511,1743028239639,-49995.12606253,0.00015,2]
[356721512,1743028239651,-438.19342204,0.00015,2]
[356721513,1743028239718,-8091.70221449,0.00015,2]
[356721514,1743028239799,-732.18335078,0.00015,2]
[356721515,1743028239881,-295.2679983,0.00015,2]